bitfinex-derivatives/quotes_ETHF0:USTF0_20241207
["timestamp","ask_amount","ask_price","bid_price","bid_amount"]
[1733579170960,0.17494,3996.6,3996.1,0.389]
[1733579171263,3.2078,3996.8,3996.1,0.389]
[1733579171467,0.17494,3996.7,3996.1,0.389]
[1733579171960,3.2078,3996.8,3996.1,0.389]
[1733579172965,3.2078,3996.8,3996.2,1.95353305]
[1733579173569,3.2078,3996.8,3996.3,40.8]
[1733579173955,3.2078,3996.8,3996.4,0.3985]
[1733579174666,3.5996,3997.4,3996.4,3.6063]
[1733579174863,3.2078,3997.0,3996.4,0.3985]
[1733579175068,0.17494,3996.6,3996.4,0.3985]
[1733579175367,3.2078,3997.0,3996.4,0.3985]
[1733579175561,0.17494,3996.7,3996.4,0.3985]
[1733579176961,0.3753,3996.9,3996.4,0.3985]
[1733579177162,0.17494,3996.7,3996.4,0.3985]
[1733579177570,0.17494,3996.6,3996.4,0.3985]
[1733579178871,0.17494,3996.7,3996.4,0.3985]
[1733579179464,0.401,3996.8,3996.4,0.3985]
[1733579179669,0.17495,3996.6,3996.4,0.3985]
[1733579180173,0.401,3996.8,3996.4,0.3985]
[1733579180368,0.17495,3996.5,3996.4,0.3985]
[1733579181166,0.17495,3996.4,3996.3,40.8]
[1733579181369,0.17497,3996.0,3995.9,3.2078]
[1733579181875,0.17497,3996.0,3995.9,44.0078]
[1733579182062,0.17497,3996.0,3995.9,40.8]
[1733579187875,0.55807,3996.0,3995.9,40.8]
[1733579189375,0.55807,3996.0,3995.3,0.63137387]
[1733579189376,0.175,3995.5,3995.3,0.63137387]
[1733579189786,0.175,3995.5,3995.4,40.8]
[1733579197294,3.2078,3995.8,3995.4,40.8]
[1733579197582,0.17497,3996.1,3995.7,1.95353305]
[1733579197778,0.17497,3996.1,3995.8,1.1317]
[1733579197973,0.17497,3996.1,3995.9,40.8]
[1733579198176,0.386,3996.4,3995.9,40.8]
[1733579198386,0.17496,3996.2,3995.9,40.8]
[1733579199480,0.17497,3996.1,3995.9,40.8]
[1733579199682,0.17496,3996.3,3995.9,40.8]
[1733579199879,0.17495,3996.4,3996.0,3.91495449]
[1733579200385,0.17495,3996.4,3995.9,44.71495449]
[1733579200581,0.7994,3996.6,3995.9,44.71495449]
[1733579200582,0.97434,3996.6,3995.9,44.71495449]
[1733579200776,0.17494,3996.7,3996.2,3.91495449]
[1733579200976,0.3875,3997.0,3996.2,3.91495449]
[1733579201175,0.3875,3997.0,3996.3,3.91495449]
[1733579201380,0.3875,3997.0,3996.1,8.47596479]
[1733579201381,0.17494,3996.7,3996.2,3.91495449]
[1733579201782,0.17494,3996.7,3996.3,3.91495449]
[1733579202184,0.17494,3996.7,3996.4,0.3955]
[1733579202378,0.3875,3997.0,3996.5,0.3755]
[1733579202582,0.17493,3997.0,3996.6,0.4101]
[1733579202788,0.17492,3997.1,3996.6,4.32505449]
[1733579203686,3.2078,3997.3,3996.7,44.71495449]
[1733579203880,3.2078,3997.3,3996.8,3.91495449]
[1733579204079,3.38271,3997.3,3996.8,3.91495449]
[1733579204683,3.38271,3997.3,3996.9,5.86848754]
[1733579205084,3.38271,3997.3,3997.0,0.4016]
[1733579206283,0.17492,3997.2,3997.0,0.4016]
[1733579208093,3.38271,3997.3,3997.0,0.4016]
[1733579208289,3.2078,3997.3,3997.0,0.4016]
[1733579208890,3.38271,3997.3,3997.0,0.4016]
[1733579209287,3.2078,3997.3,3997.0,0.4016]
[1733579209587,3.38271,3997.3,3997.0,0.4016]
[1733579210289,0.17491,3997.3,3997.0,0.4016]
[1733579213888,3.2078,3997.4,3997.0,0.4016]
[1733579214192,3.2078,3997.4,3996.6,0.4101]
[1733579214193,0.17494,3996.7,3996.6,0.4101]
[1733579214390,0.17494,3996.7,3996.5,7.49825449]
[1733579214391,0.17494,3996.7,3996.5,3.5833]
[1733579214590,0.4093,3996.6,3996.5,3.5833]
[1733579216697,0.4093,3996.6,3996.5,44.3833]
[1733579218890,0.17493,3997.0,3996.5,44.3833]
[1733579219092,0.17492,3997.1,3996.6,1.95353305]
[1733579219296,0.3954,3997.2,3996.6,1.95353305]
[1733579219493,0.3954,3997.2,3997.0,1.95353305]
[1733579219689,0.3954,3997.2,3997.1,0.412]
[1733579220294,0.3954,3997.2,3997.1,41.212]
[1733579220496,0.3954,3997.2,3997.1,41.6164]
[1733579220697,0.57032,3997.2,3997.1,40.8]
[1733579223303,0.3954,3997.2,3997.1,40.8]
[1733579223504,0.57032,3997.2,3997.1,40.8]
[1733579223805,0.3954,3997.2,3997.1,40.8]
[1733579224099,3.2078,3997.4,3997.1,40.8]
[1733579224296,3.2078,3997.4,3997.2,0.7917]
[1733579224500,3.2078,3997.4,3997.2,1.1709]
[1733579226907,3.2078,3997.9,3997.2,1.1709]
[1733579227207,3.2078,3997.9,3997.5,1.95353305]
[1733579228004,3.38269,3997.9,3997.5,1.95353305]
[1733579229605,3.2078,3997.9,3997.5,1.95353305]
[1733579229815,0.97108,3998.1,3997.5,1.95353305]
[1733579230402,0.97108,3998.1,3997.5,5.16133305]
[1733579230902,0.3991,3998.1,3997.9,1.95353305]
[1733579231100,0.57398,3998.1,3998.0,0.3793]
[1733579231501,0.57398,3998.1,3998.0,41.1793]
[1733579231897,0.57398,3998.1,3998.0,40.8]
[1733579232103,0.3991,3998.1,3997.6,0.3793]
[1733579232297,3.2078,3997.8,3997.6,0.3793]
[1733579232504,0.3909,3997.7,3997.6,0.3793]
[1733579232706,0.56579,3997.7,3997.6,41.1793]
[1733579232902,0.3909,3997.7,3997.6,41.1793]
[1733579234099,0.3991,3998.1,3997.6,41.1793]
[1733579234305,0.3991,3998.1,3997.9,1.95353305]
[1733579238812,0.3991,3998.1,3998.0,0.3888]
[1733579239299,0.3909,3998.3,3998.0,0.7888]
[1733579239696,0.3909,3998.3,3998.1,0.3895]
[1733579239900,0.17486,3998.6,3998.1,0.3895]
[1733579240303,0.7867,3998.7,3998.1,0.3895]
[1733579240508,0.96155,3998.7,3998.1,0.3895]
[1733579241010,0.17486,3998.4,3998.1,0.3895]
[1733579241305,0.17487,3998.2,3998.1,0.3895]
[1733579241510,0.17487,3998.3,3998.1,0.3895]
[1733579241907,0.3978,3998.2,3998.1,0.3895]
[1733579245412,0.57267,3998.2,3998.1,0.3895]
[1733579248315,0.3978,3998.2,3998.1,0.3895]
[1733579248511,0.3978,3998.2,3998.1,1.28993086]
[1733579248708,0.57267,3998.2,3998.1,1.28993086]
[1733579250114,0.3978,3998.2,3998.1,1.28993086]
[1733579250513,0.57267,3998.2,3998.1,1.28993086]
[1733579251713,0.57267,3998.2,3998.1,0.90043086]
[1733579256822,0.17488,3998.1,3998.0,0.25002875]
[1733579257018,0.17488,3998.1,3998.0,1.15045961]
[1733579257915,0.57268,3998.2,3998.0,1.15045961]
[1733579259016,0.17488,3998.1,3998.0,1.15045961]
[1733579259219,0.3978,3998.2,3998.0,1.15045961]
[1733579259413,0.17487,3998.3,3998.0,1.15045961]
[1733579259618,0.17487,3998.3,3998.2,0.90043086]
[1733579259818,0.17487,3998.3,3998.2,41.70043086]
[1733579260018,0.3917,3998.5,3998.2,41.70043086]
[1733579260225,0.56656,3998.5,3998.2,41.70043086]
[1733579260517,0.3917,3998.5,3998.3,0.8035]
[1733579260711,0.17486,3998.4,3998.3,0.8035]
[1733579261111,0.3917,3998.5,3998.3,0.8035]
[1733579261624,0.17486,3998.4,3998.3,0.8035]
[1733579261918,0.17486,3998.4,3998.3,0.3966]
[1733579262124,0.17486,3998.4,3998.3,0.90043086]
[1733579269221,3.101236,3998.4,3998.3,0.90043086]
[1733579270224,0.17486,3998.4,3998.3,0.90043086]
[1733579271022,0.17488,3998.0,3997.8,0.4069]
[1733579271227,3.11443931,3997.9,3997.8,0.4069]
[1733579271428,0.98879,3997.9,3997.8,41.2069]
[1733579273029,0.98879,3997.9,3997.8,0.4069]
[1733579273322,0.98879,3997.9,3997.4,0.405]
[1733579273323,1.25112,3997.9,3997.4,0.405]
[1733579273532,7.30319177,3997.7,3997.6,0.90043086]
[1733579273722,3.38269,3997.7,3997.6,4.81538535]
[1733579274127,3.38269,3997.7,3997.6,0.90043086]
[1733579274725,0.17489,3997.7,3997.6,0.90043086]
[1733579274925,0.17489,3997.7,3997.6,4.81538535]
[1733579275228,0.17489,3997.7,3997.6,0.90043086]
[1733579275429,0.17489,3997.7,3997.6,4.81538535]
[1733579276435,0.17489,3997.7,3997.6,0.90043086]
[1733579280538,3.2078,3997.8,3997.5,40.8]
[1733579280729,0.1749,3997.6,3997.5,0.90043086]
[1733579280933,3.11528648,3997.6,3997.5,0.90043086]
[1733579281742,0.1749,3997.6,3997.5,0.90043086]
[1733579281939,3.35218648,3997.7,3997.1,3.91495449]
[1733579282136,0.17492,3997.1,3997.0,4.81538535]
[1733579282540,0.17492,3997.1,3997.0,45.61538535]
[1733579283242,0.17492,3997.1,3997.0,41.70043086]
[1733579285131,3.5815,3997.4,3997.0,41.70043086]
[1733579285340,3.75641,3997.4,3997.3,0.90043086]
[1733579285942,3.75641,3997.4,3997.3,41.70043086]
[1733579286739,3.38271,3997.4,3997.3,41.6047]
[1733579286940,0.17491,3997.4,3997.3,41.6047]
[1733579290145,0.3733,3997.7,3997.3,41.6047]
[1733579290442,0.54819,3997.7,3997.6,0.90043086]
[1733579290747,0.17489,3997.7,3997.6,0.90043086]
[1733579295440,2.94038648,3998.0,3997.6,0.90043086]
[1733579295636,3.2078,3998.2,3997.9,0.90043086]
[1733579295942,0.17488,3998.1,3998.0,1.1721]
[1733579297843,3.2078,3998.2,3997.7,3.91495449]
[1733579298044,3.2078,3998.2,3997.8,0.90043086]
[1733579298045,0.17489,3997.9,3997.8,0.90043086]
[1733579300047,0.1749,3997.6,3997.5,4.16501888]
[1733579300242,0.1749,3997.6,3997.5,5.06544974]
[1733579300445,0.1749,3997.6,3997.5,1.15049525]
[1733579300645,0.1749,3997.6,3997.5,5.07671182]
[1733579301045,0.4096,3998.0,3997.5,5.07671182]
[1733579301240,0.1749,3997.7,3997.5,4.17628096]
[1733579301449,0.1749,3997.7,3997.6,3.92621657]
[1733579303244,0.1749,3997.7,3997.6,4.82664743]
[1733579303846,0.1749,3997.7,3997.6,0.90043086]
[1733579305249,0.4096,3998.0,3997.6,0.90043086]
[1733579305451,0.4096,3998.0,3997.9,0.90043086]
[1733579305452,0.17488,3998.0,3997.9,0.90043086]
[1733579306752,0.17488,3998.1,3997.9,0.90043086]
[1733579306951,0.8074,3998.3,3998.0,1.67693086]
[1733579306952,0.17487,3998.2,3998.0,1.67693086]
[1733579307155,0.57997,3998.3,3998.1,0.3752]
[1733579308554,0.17487,3998.2,3998.1,0.3752]
[1733579308946,0.17488,3998.1,3998.0,1.29253086]
[1733579309456,0.17487,3998.2,3998.0,1.29253086]
[1733579309655,0.17488,3998.1,3998.0,1.29253086]
[1733579310658,0.17487,3998.2,3998.0,1.29253086]
[1733579310855,0.4051,3998.3,3998.0,1.29253086]
[1733579311056,0.17488,3998.1,3998.0,1.29253086]
[1733579311954,0.17488,3998.1,3998.0,5.21874743]
[1733579312256,0.17487,3998.2,3998.0,5.21874743]
[1733579312852,0.17488,3998.1,3998.0,5.21874743]
[1733579313058,0.17488,3998.2,3998.0,5.21874743]
[1733579313447,0.4051,3998.3,3998.0,5.21874743]
[1733579313448,0.57997,3998.3,3998.0,5.21874743]
[1733579314054,0.57997,3998.3,3998.1,3.92621657]
[1733579314055,0.17487,3998.2,3998.1,3.92621657]
[1733579314254,0.17487,3998.2,3998.0,5.21874743]
[1733579314863,0.4051,3998.3,3998.1,3.92621657]
[1733579315262,0.57997,3998.3,3998.2,0.3754]
[1733579315654,0.57997,3998.3,3998.2,1.27583086]
[1733579325870,0.57997,3998.3,3998.2,0.90043086]
[1733579327565,3.52035648,3998.3,3998.2,0.90043086]
[1733579327969,0.57997,3998.3,3998.2,0.90043086]
[1733579328569,3.52035648,3998.3,3998.2,0.90043086]
[1733579331474,0.57997,3998.3,3998.2,0.90043086]
[1733579331661,3.51945527,3998.3,3998.2,0.90043086]
[1733579331867,0.57997,3998.3,3998.2,0.90043086]
[1733579332976,0.43719,3998.2,3997.6,3.92621657]
[1733579333169,0.1749,3997.6,3997.5,1.15049525]
[1733579333564,3.51003877,3997.6,3997.5,1.15049525]
[1733579333973,0.5703,3997.6,3997.5,5.52120013]
[1733579334281,0.5703,3997.6,3997.5,4.37070488]
[1733579334470,0.3954,3997.6,3997.4,3.93131851]
[1733579334776,0.17491,3997.4,3997.3,47.93911851]
[1733579336972,0.17491,3997.4,3997.3,40.8]
[1733579338667,0.5703,3997.6,3997.3,45.16909256]
[1733579338876,0.5703,3997.6,3997.5,0.90043086]
[1733579339168,0.5703,3997.6,3997.5,4.83013118]
[1733579339372,0.5703,3997.6,3997.5,5.21053118]
[1733579341967,0.5703,3997.6,3997.5,1.28083086]
[1733579344877,2.93973877,3997.7,3997.5,1.28083086]
[1733579345080,0.17489,3997.9,3997.7,0.17489]
[1733579345280,0.17489,3997.9,3997.8,0.90043086]
[1733579346178,0.7876,3998.1,3997.8,0.90043086]
[1733579346480,0.17489,3997.9,3997.8,0.90043086]
[1733579346684,0.17488,3998.0,3997.9,0.3902]
[1733579348681,3.72733877,3998.1,3997.6,3.92970032]
[1733579348885,0.17491,3997.4,3997.3,3.92970032]
[1733579349087,0.1749,3997.6,3997.5,0.90043086]
[1733579350081,0.1749,3997.6,3997.5,1.07533086]
[1733579350281,0.1749,3997.6,3997.5,5.00467586]
[1733579350486,0.1749,3997.6,3997.5,4.82977586]
[1733579351082,0.1749,3997.6,3997.5,5.62607586]
[1733579351386,0.1749,3997.6,3997.5,1.69673086]
[1733579351980,0.1749,3997.6,3997.5,5.62607586]
[1733579353387,4.37733877,3998.1,3997.5,5.80097586]
[1733579353388,0.1749,3997.7,3997.5,5.80097586]
[1733579353687,0.1749,3997.7,3997.6,1.30353086]
[1733579356587,2.93973877,3998.0,3997.5,0.4054]
[1733579356780,1.4376,3998.1,3997.3,3.929345]
[1733579356781,0.17491,3997.4,3997.3,3.929345]
[1733579357089,0.17491,3997.4,3997.3,0.90043086]
[1733579362404,3.71663877,3997.5,3996.8,4.323945]
[1733579362691,3.2078,3997.2,3996.6,3.929345]
[1733579362898,0.17494,3996.6,3996.5,0.3789]
[1733579364091,0.17494,3996.6,3996.5,4.308245]
[1733579365285,0.17494,3996.6,3996.5,5.20867586]
[1733579366395,0.17494,3996.6,3996.5,1.27933086]
[1733579366691,0.17494,3996.6,3996.5,0.90043086]
[1733579366995,0.17495,3996.5,3996.4,3.929345]
[1733579367187,0.17495,3996.5,3996.2,41.70043086]
[1733579367188,0.3995,3996.5,3996.2,41.70043086]
[1733579367382,0.17496,3996.3,3996.2,41.70043086]
[1733579368293,0.17496,3996.3,3996.2,40.8]
[1733579369194,0.17496,3996.2,3996.1,0.90043086]
[1733579372491,0.17496,3996.2,3996.1,41.70043086]
[1733579378701,0.17496,3996.2,3996.1,40.8]
[1733579378899,0.17496,3996.2,3996.1,41.70043086]
[1733579384497,0.17496,3996.2,3996.1,0.90043086]
[1733579390303,3.64519,3996.4,3995.8,0.7829]
[1733579390499,0.17497,3995.9,3995.8,0.7829]
[1733579390806,0.17497,3995.9,3995.8,41.5829]
[1733579391409,0.17497,3995.9,3995.8,41.75788]
[1733579391807,0.17497,3995.9,3995.8,41.5829]
[1733579392604,0.17497,3995.9,3995.8,42.48333086]
[1733579393407,0.17497,3995.9,3995.8,0.3814]
[1733579394319,0.17497,3995.9,3995.8,1.28183086]
[1733579402009,0.17497,3995.9,3995.8,42.08183086]
[1733579404413,0.17497,3995.9,3995.8,1.28183086]
[1733579404609,0.17497,3995.9,3995.8,0.3814]
[1733579404815,0.175,3995.4,3995.3,7.137145]
[1733579405007,0.175,3995.4,3995.3,7.525545]
[1733579405207,0.175,3995.4,3995.3,4.49663086]
[1733579405408,0.175,3995.4,3995.3,4.67163086]
[1733579405916,0.175,3995.4,3995.3,8.60097586]
[1733579406315,0.175,3995.4,3995.3,9.03981707]
[1733579406615,0.175,3995.4,3995.3,8.86481707]
[1733579406917,0.175,3995.4,3995.3,49.66481707]
[1733579407305,0.175,3995.4,3995.3,49.66612363]
[1733579408316,0.175,3995.4,3995.3,55.53855537]
[1733579409619,0.175,3995.4,3995.3,55.54070899]
[1733579409921,1.4746,3996.0,3995.3,49.66827725]
[1733579410119,0.17499,3995.6,3995.5,0.17499]
[1733579410309,0.17498,3995.7,3995.6,0.17498]
[1733579410512,0.17498,3995.7,3995.6,4.54645226]
[1733579410813,0.17498,3995.7,3995.6,4.77287226]
[1733579411322,0.17498,3995.7,3995.6,11.57149311]
[1733579411823,2.93973877,3996.1,3995.6,11.57149311]
[1733579412118,0.17496,3996.1,3996.0,5.00892622]
[1733579412321,0.17496,3996.1,3996.0,5.44947338]
[1733579412816,2.93973877,3996.3,3996.0,5.68520338]
[1733579413024,0.17495,3996.5,3996.3,0.17495]
[1733579413217,0.17495,3996.6,3996.4,10.83333403]
[1733579413419,0.17495,3996.6,3996.5,10.27408403]
[1733579413620,0.17494,3996.8,3996.6,0.17494]
[1733579413819,0.17494,3996.8,3996.7,46.45662684]
[1733579414121,3.2078,3996.9,3996.7,46.45662684]
[1733579414322,0.17493,3996.8,3996.7,46.01518709]
[1733579415320,0.17493,3996.8,3996.7,46.01428421]
[1733579416023,0.17493,3996.8,3996.7,42.08283086]
[1733579416325,0.17493,3996.8,3996.7,46.01417969]
[1733579416524,0.17493,3996.8,3996.7,42.08283086]
[1733579417720,0.17493,3996.8,3996.7,1.28283086]
[1733579419819,0.17493,3997.0,3996.8,0.17493]
[1733579420027,3.91965169,3997.3,3996.7,1.28283086]
[1733579420028,2.93973877,3997.3,3996.7,1.28283086]
[1733579420220,3.91965169,3997.5,3996.9,40.8]
[1733579420221,0.17492,3997.2,3996.9,40.8]
[1733579420420,0.17491,3997.3,3997.0,0.408]
[1733579420621,0.17491,3997.3,3997.1,0.17492]
[1733579420828,3.33663877,3997.5,3997.1,0.17492]
[1733579420829,0.17491,3997.4,3997.1,0.17492]
[1733579421123,0.17491,3997.4,3997.0,0.408]
[1733579421328,0.17491,3997.4,3997.3,0.90043086]
[1733579421823,0.17491,3997.4,3997.3,1.28033086]
[1733579434031,0.17491,3997.4,3997.3,0.90043086]
[1733579444036,0.17491,3997.4,3997.0,0.408]
[1733579444037,0.17492,3997.1,3997.0,0.408]
[1733579444238,0.6122,3997.3,3997.0,0.90043086]
[1733579444440,0.17492,3997.1,3997.0,0.90043086]
[1733579444843,0.56582,3997.1,3997.0,0.90043086]
[1733579446237,0.3909,3997.1,3996.8,3.2078]
[1733579446452,0.17493,3996.9,3996.8,3.2078]
[1733579446743,0.17493,3996.9,3996.8,4.10823086]
[1733579450146,0.17493,3996.9,3996.8,0.90043086]
[1733579456053,0.17493,3996.9,3996.4,10.17162516]
[1733579456054,0.4016,3997.0,3996.4,7.13914883]
[1733579456248,0.17495,3996.5,3996.4,3.2078]
[1733579456642,0.17495,3996.5,3996.4,44.0078]
[1733579458352,0.17495,3996.5,3996.4,40.8]
[1733579461046,0.17494,3996.7,3996.6,0.17494]
[1733579461350,0.4016,3997.0,3996.7,0.17493]
[1733579461351,0.17494,3996.8,3996.7,0.17493]
[1733579461551,0.17494,3996.8,3996.7,4.94490068]
[1733579461758,0.17494,3996.8,3996.7,10.84482584]
[1733579461950,0.17494,3996.8,3996.7,4.94490068]
[1733579462149,0.17494,3996.8,3996.7,4.76997068]
[1733579462347,0.17494,3996.8,3996.7,4.76966907]
[1733579462547,0.17493,3997.0,3996.7,4.76966907]
[1733579462754,0.17493,3997.0,3996.9,0.90043086]
[1733579462950,0.17493,3997.0,3996.9,5.27039993]
[1733579463151,0.17493,3997.0,3996.9,11.16612476]
[1733579463449,0.17492,3997.1,3996.9,5.44532993]
[1733579463756,0.17492,3997.1,3997.0,5.27039993]
[1733579464255,0.17492,3997.1,3997.0,3.93075131]
[1733579464463,0.17493,3997.0,3996.9,4.83118217]
[1733579464648,0.58193,3997.0,3996.9,0.90043086]
[1733579465952,0.17493,3997.0,3996.9,0.90043086]
[1733579466155,0.17493,3997.0,3996.9,5.27087392]
[1733579466758,0.17493,3997.0,3996.9,11.34168183]
[1733579467056,0.3977,3997.3,3996.9,11.34168183]
[1733579467247,0.17491,3997.3,3997.2,0.90043086]
[1733579469353,0.3977,3997.5,3997.2,5.73167544]
[1733579469554,3.2078,3997.6,3997.4,3.93081372]
[1733579469758,6.31863957,3997.6,3997.5,0.90043086]
[1733579470260,6.31863957,3997.6,3997.5,41.70043086]
[1733579470261,3.3827,3997.6,3997.5,41.70043086]
[1733579472559,0.1749,3997.6,3997.5,41.70043086]
[1733579473060,0.1749,3997.6,3997.5,0.90043086]
[1733579475059,0.1749,3997.6,3997.5,1.27693086]
[1733579476765,0.1749,3997.6,3997.5,5.20774458]
[1733579477861,0.1749,3997.6,3997.5,1.27693086]
[1733579478063,0.1749,3997.6,3997.5,5.20774458]
[1733579478263,0.1749,3997.6,3997.5,1.27693086]
[1733579478656,0.1749,3997.6,3997.5,5.20774458]
[1733579479963,0.1749,3997.6,3997.5,1.27693086]
[1733579482269,0.3816,3997.8,3997.5,8.41554458]
[1733579482484,0.1749,3997.7,3997.6,4.10571372]
[1733579482779,0.3937,3998.0,3997.6,3.93081372]
[1733579482968,0.56858,3998.0,3997.9,0.90043086]
[1733579486274,0.17488,3998.0,3997.9,0.90043086]
[1733579486678,0.17488,3998.0,3997.9,1.07532086]
[1733579486977,0.17488,3998.0,3997.9,0.90043086]
[1733579487471,0.17488,3998.0,3997.9,1.31213086]
[1733579491874,0.17488,3998.0,3997.9,0.90043086]
[1733579494172,0.55628,3998.0,3997.9,0.90043086]
[1733579497679,0.3814,3998.0,3997.5,40.8]
[1733579497980,0.1749,3997.6,3997.5,41.70043086]
[1733579498783,0.1749,3997.6,3997.0,4.30421372]
[1733579498784,0.17493,3997.0,3996.9,4.18089624]
[1733579498994,0.17493,3997.0,3996.9,1.52371338]
[1733579499277,0.17493,3997.0,3996.9,42.32371338]
[1733579504382,0.17493,3997.0,3996.9,46.2545271]
[1733579504692,0.17493,3997.0,3996.9,42.32371338]
[1733579505284,0.17493,3997.0,3996.9,46.2545271]
[1733579505484,0.17493,3997.0,3996.9,42.32371338]
[1733579505985,0.17493,3997.0,3996.9,46.2545271]
[1733579506977,0.17493,3997.0,3996.9,42.32371338]
[1733579513993,0.17493,3997.0,3996.9,46.70412238]
[1733579514292,0.17493,3997.0,3996.9,46.25266535]
[1733579514495,0.17493,3997.0,3996.9,46.25266774]
[1733579514994,0.17493,3997.0,3996.9,42.32371338]
[1733579515196,0.17493,3997.0,3996.9,46.2527453]
[1733579519599,0.17493,3997.0,3996.9,46.25192515]
[1733579519801,0.17493,3997.0,3996.9,42.32371338]
[1733579520100,0.17493,3997.0,3996.9,46.25195207]
[1733579522001,0.17493,3997.0,3996.9,42.32371338]
[1733579524198,0.17493,3997.0,3996.9,0.3732]
[1733579524495,0.3922,3997.2,3996.9,0.3732]
[1733579524496,4.14743957,3997.2,3996.9,0.90043086]
[1733579524695,0.17493,3996.9,3996.8,41.2056]
[1733579524898,0.17493,3996.9,3996.8,42.10603086]
[1733579526693,3.38273,3996.9,3996.8,42.10603086]
[1733579541004,0.17493,3996.9,3996.8,42.10603086]
[1733579541408,3.11086957,3996.9,3996.8,42.10603086]
[1733579542806,3.11086957,3996.9,3996.8,0.4056]
[1733579543007,0.17493,3996.9,3996.8,0.4056]
[1733579543210,0.17494,3996.7,3996.6,1.5582653]
[1733579543512,3.11342714,3996.7,3996.6,5.48650399]
[1733579544117,0.17494,3996.7,3996.6,11.84111122]
[1733579544320,0.17494,3996.7,3996.6,10.69054592]
[1733579544704,0.17494,3996.7,3996.6,11.59097678]
[1733579545215,0.17494,3996.7,3996.6,5.69509887]
[1733579546819,0.17494,3996.7,3996.6,11.5976399]
[1733579547316,0.17494,3996.7,3996.6,11.59765156]
[1733579548318,0.17494,3996.7,3996.6,11.18995156]
[1733579548516,6.14628714,3996.7,3996.5,3.93526799]
[1733579548718,0.17495,3996.5,3996.4,3.93526799]
[1733579548919,0.17495,3996.4,3996.3,3.93526799]
[1733579549725,2.93746592,3996.5,3996.3,3.93526799]
[1733579549928,0.17496,3996.3,3996.2,3.93526799]
[1733579550117,2.93746592,3996.5,3996.1,47.60298355]
[1733579550416,0.58156,3996.2,3996.1,41.70043086]
[1733579550614,0.58156,3996.2,3996.1,51.98874772]
[1733579550815,0.17496,3996.2,3996.1,46.26115503]
[1733579551015,0.17495,3996.6,3996.5,0.17494]
[1733579551217,0.17494,3996.7,3996.6,0.17494]
[1733579551412,0.17494,3996.7,3996.6,12.5355353]
[1733579551617,0.17494,3996.7,3996.6,12.3605953]
[1733579552322,0.17494,3996.7,3996.6,6.63511312]
[1733579552518,0.17494,3996.7,3996.6,6.46017312]
[1733579553216,0.17494,3996.7,3996.6,12.35998047]
[1733579554818,0.17494,3996.7,3996.6,6.46017312]
[1733579555021,0.17494,3996.7,3996.6,12.37115308]
[1733579555418,0.17494,3996.7,3996.6,12.37131343]
[1733579556326,0.17494,3996.7,3996.6,6.47107151]
[1733579556527,0.17494,3996.7,3996.6,12.37141982]
[1733579557817,0.17494,3996.7,3996.6,4.39624065]
[1733579558014,2.93746592,3997.0,3996.5,5.90034831]
[1733579558015,0.17494,3996.6,3996.5,5.90034831]
[1733579558221,0.54844,3996.6,3996.5,11.1975546]
[1733579559325,3.48590592,3996.6,3996.5,0.90043086]
[1733579560822,0.54844,3996.6,3996.5,0.90043086]
[1733579561023,3.48590592,3996.6,3996.5,0.90043086]
[1733579561527,0.17494,3996.6,3996.5,0.90043086]
[1733579561726,0.17494,3996.6,3996.5,4.83440319]
[1733579564434,3.11240592,3996.6,3996.5,4.83440319]
[1733579565046,0.17494,3996.6,3996.5,4.83440319]
[1733579565242,3.11240592,3996.6,3996.5,4.83440319]
[1733579566745,3.11240592,3996.6,3996.5,0.90043086]
[1733579567041,0.17494,3996.6,3996.5,0.90043086]
[1733579567345,0.17494,3996.6,3996.5,11.19912009]
[1733579568247,0.17494,3996.6,3996.5,4.39834092]
[1733579568444,0.17494,3996.6,3996.5,3.93566607]
[1733579568744,3.11214729,3996.6,3996.5,3.93566607]
[1733579569748,2.93720729,3996.6,3996.4,3.93566607]
[1733579569944,0.56015,3996.5,3996.4,3.93566607]
[1733579570352,3.49735729,3996.5,3996.4,3.93566607]
[1733579570850,0.56015,3996.5,3996.4,3.93566607]
[1733579574350,0.17496,3996.3,3996.2,4.83609693]
[1733579574845,0.17496,3996.3,3996.2,0.90043086]
[1733579574846,3.11162273,3996.3,3996.2,0.90043086]
[1733579575051,3.11162273,3996.3,3996.2,41.70043086]
[1733579575249,0.17496,3996.3,3996.2,41.70043086]
[1733579577948,0.17496,3996.3,3996.2,41.87539086]
[1733579578141,0.17495,3996.4,3996.2,45.63609693]
[1733579578449,0.17496,3996.3,3996.2,47.77573917]
[1733579578649,0.17496,3996.3,3996.2,52.17234876]
[1733579579951,0.17496,3996.3,3996.2,52.17243135]
[1733579581548,0.17496,3996.3,3996.2,55.38023135]
[1733579582450,0.17496,3996.3,3996.2,58.27350624]
[1733579582848,0.17496,3996.3,3996.2,66.14142972]
[1733579583247,0.17496,3996.3,3996.2,66.1418471]
[1733579583547,0.17496,3996.3,3996.2,66.14210272]
[1733579583946,0.17496,3996.3,3996.2,65.96714272]
[1733579584148,0.17496,3996.3,3996.2,65.06671186]
[1733579584452,0.17496,3996.3,3996.2,57.19907642]
[1733579584651,0.17496,3996.3,3996.2,65.06750379]
[1733579584852,0.17496,3996.3,3996.2,65.06756965]
[1733579585349,0.17496,3996.3,3996.2,65.24252965]
[1733579585557,0.17496,3996.3,3996.2,57.37410228]
[1733579585743,0.17496,3996.3,3996.2,57.19914228]
[1733579585939,0.17496,3996.3,3996.2,8.505323]
[1733579586347,0.17495,3996.4,3996.3,0.17495]
[1733579586539,0.17495,3996.4,3996.3,4.39709214]
[1733579586942,0.7895,3996.8,3996.3,12.44052625]
[1733579587144,0.96443,3996.8,3996.7,3.93428881]
[1733579588752,0.96443,3996.8,3996.7,4.97277391]
[1733579589253,0.96443,3996.8,3996.7,4.79783391]
[1733579589754,2.93666273,3997.2,3996.7,4.79783391]
[1733579589944,3.91965169,3997.4,3997.0,6.07600955]
[1733579589945,0.17492,3997.1,3997.0,6.07600955]
[1733579590146,0.17492,3997.1,3997.0,11.19895432]
[1733579590346,0.17492,3997.1,3997.0,5.29786477]